[Event "Serbian League 2024"]
[Site "Bajina Basta"]
[Date "2024.10.02"]
[Round "6.22"]
[White "Nestorovic, Nikola"]
[Black "Zajic, Milan"]
[Result "1-0"]
[ECO "C54"]
[WhiteElo "2458"]
[BlackElo "2404"]
[Annotator "TA"]
[PlyCount "105"]
[EventDate "2024.09.26"]
[EventType "team-tourn"]
[EventCountry "SRB"]
[SourceTitle "playchess.com"]
[Source "ChessBase"]
[SourceQuality "1"]
[TimeControl "40/5400+30:1800+30"]

{[%evp 11,105,15,19,18,18,16,17,-11,-21,-7,-22,-13,3,-18,0,-42,83,36,136,139,140,148,130,122,154,178,233,218,208,191,280,255,308,282,483,196,175,-88,-92,-341,-334,-454,24,32,69,67,344,339,370,371,498,518,514,505,512,516,536,217,222,211,622,657,749,752,752,752,745,745,788,779,778,779,804,693,2554,2554,2547,1815,29963,29966,29966,29965,29978,29979,29979,29980,29979,29975,29971,29973,29982,29983,29982,29983,29984,29985]} 1. e4 {[%emt 0:00:03]} e5 {[%emt 0:00:01]} 2. Nf3 {[%emt 0:00:08]} Nc6 {[%emt 0:00:02]} 3. Bc4 {[%emt 0:00:09]} Nf6 {[%emt 0:00:02]} 4. d3 {[%emt 0:00:47]} Bc5 {[%emt 0:00:02]} 5. O-O {[%emt 0:00:53]} d6 {[%emt 0:00:03]} 6. c3 {[%emt 0:00:29]} a6 {[%emt 0:00:02]} 7. a4 {[%emt 0:01:03]} Ba7 {[%emt 0:00:02]} 8. Nbd2 {[%emt 0:00:27]} O-O {[%emt 0:00:03]} 9. Re1 {[%emt 0:01:39] The position is equal.} Ng4 {[%emt 0:00:42]} 10. Re2 {[%emt 0:00:02]} Kh8 {[%emt 0:00:08]} 11. h3 {[%emt 0:01:14]} Nh6 {[%emt 0:00:15]} 12. d4 {[%emt 0:14:56]} f5 {[%emt 0:19:32]} 13. Bd5 {[%emt 0:29:47]} Ne7 {[%emt 0:21:30]} (13... exd4 $15 {keeps the upper hand.} 14. cxd4 fxe4 (14... Nxd4 15. Nxd4 Bxd4 16. Nf3 $16) 15. Rxe4 (15. Nxe4 Rxf3 16. Bxc6 bxc6 $11) 15... Nf5) 14. dxe5 $16 {[%emt 0:10:05] White is more active.} Nxd5 {[%emt 0:10:17]} (14... Ng6 $1 $14) 15. exd5 {[%emt 0:00:04] aiming for e6.} dxe5 {[%emt 0:00:14]} 16. Nxe5 {[%emt 0:00:11]} (16. Rxe5 $6 Nf7 $16) 16... Qxd5 {[%emt 0:00:59]} 17. Qe1 {[%emt 0:00:07]} Ng8 {[%emt 0:14:45]} 18. c4 {[%emt 0:04:00]} Qd8 {[%emt 0:03:50]} (18... Qd6 $142 19. Ndf3 a5) 19. Ndf3 $18 {[%emt 0:03:27]} f4 {[%emt 0:01:10]} 20. Ra3 {[%emt 0:04:08]} Qf6 {[%emt 0:17:38]} (20... Be6 $142 21. Rd3 Qf6) 21. Re4 {[%emt 0:01:21]} Bf5 {[%emt 0:04:12]} 22. Rxf4 {[%emt 0:01:57] Threatens to win with g4.} g5 $2 {[%emt 0:01:54]} (22... Qd6 {was necessary.} 23. Rb3 Ne7) 23. Nd7 {[%emt 0:02:53] Excellent horsemanship.} (23. Nxg5 $142 Qxg5 24. Raf3) 23... Qe7 {[%emt 0:00:32] [#]} 24. Bd2 {[%emt 0:16:37]} Qxd7 $17 {[%emt 0:02:45]} (24... Qxe1+ 25. Bxe1 gxf4 26. Bc3+ $16 (26. Nxf8 $2 Nf6 $19) (26. Nxf8 $2 Nf6 $19)) 25. Qe5+ {[%emt 0:05:31]} (25. Nxg5 $17 {was worth a try.} Rae8 26. Qd1) 25... Rf6 $19 {[%emt 0:00:15]} 26. Nxg5 {[%emt 0:00:04] Strongly threatening Bc3.} Re8 $2 {[%emt 0:01:21]} (26... Qxd2 $19 27. Raf3 c6) 27. Qd5 $1 $11 {[%emt 0:00:01]} Qxd5 {[%emt 0:00:46]} 28. cxd5 {[%emt 0:00:01] Raf3 would now be deadly.} Kg7 $2 {[%emt 0:00:56][%mdl 8192] White stays focused until the end.} (28... h6 $1 $14 29. Bc3 Kg7 (29... hxg5 $2 30. Rxf5 Kg7 31. Rxg5+ Kf7 32. Bxf6 $18) 30. Rxf5 (30. Bxf6+ Kxf6 31. Ne6 Ne7 $16) 30... Kg6 31. Rxf6+ (31. Bxf6 Kxf5 32. Nh7 Re1+ 33. Kh2 Bc5 $16) 31... Nxf6) 29. Rg3 $18 {[%emt 0:01:00] Black must now prevent Ne6+.} Bg6 {[%emt 0:00:30] [#] And now ...Rxf4 would win.} 30. Bc3 $1 {[%emt 0:00:12]} Bc5 {[%emt 0:00:27][%cal Oc5d6] [#]} ({Don't blunder} 30... Bb8 $2 31. Ne6+ (31. Bxf6+ Nxf6 32. Ne6+ Rxe6 $18) 31... Kf7 32. Bxf6 Nxf6 33. Rgf3 $18) 31. Ne6+ $1 {[%emt 0:02:06]} (31. Bxf6+ Nxf6 32. Ne6+ Rxe6 33. dxe6 Bd6 $11) 31... Rexe6 {[%emt 0:00:10]} 32. dxe6 {[%emt 0:00:03]} Be7 {[%emt 0:00:51]} 33. Rgf3 {[%emt 0:00:01]} Be8 {[%emt 0:00:25]} 34. g4 {[%emt 0:00:20]} (34. Kf1 $142) 34... Kg6 {[%emt 0:00:14]} 35. Bxf6 {[%emt 0:00:10]} Bxf6 {[%emt 0:00:22] [#]} (35... Nxf6 36. Rf5 Bxa4) 36. g5 $1 {[%emt 0:00:27]} Bg7 {[%emt 0:00:59] [#]} 37. Rf8 $1 {[%emt 0:00:20]} Bc6 {[%emt 0:00:02]} 38. Rxg8 {[%emt 0:00:12]} Bxf3 {[%emt 0:00:23]} 39. e7 {[%emt 0:00:05]} Bc6 {[%emt 0:00:04]} 40. e8=Q+ {[%emt 0:03:30]} Bxe8 {[%emt 0:00:04]} 41. Rxe8 {[%emt 0:26:58]} Bxb2 {[%emt 0:30:11][%mdl 4096] Endgame. KR-KB} 42. Re7 {[%emt 0:00:57]} b5 {[%emt 0:00:00]} 43. axb5 {[%emt 0:00:00]} axb5 {[%emt 0:00:00][%cal Ba6b5,Bb5b4,Bb4b3,Bb3b2][%mdl 32]} 44. Rxc7 {[%emt 0:00:00] Intending h4 and mate.} b4 {[%emt 0:00:00]} 45. h4 {[%emt 0:00:00] White mates.} Bc3 {[%emt 0:02:13]} 46. Kg2 {[%emt 0:00:00]} Kf5 {[%emt 0:01:47]} 47. Rxh7 {[%emt 0:00:00]} b3 {[%emt 0:00:10]} 48. Rb7 {[%emt 0:00:00]} b2 {[%emt 0:00:03]} 49. f3 {[%emt 0:00:00]} Kf4 {[%emt 0:00:43]} 50. Rb5 {[%emt 0:00:00]} Ke3 {[%emt 0:00:48]} 51. h5 {[%emt 0:00:00][%cal Bh4h5,Bh5h6][%mdl 32]} Kd3 {[%emt 0:00:10]} 52. h6 {[%emt 0:00:00]} Kc4 {[%emt 0:00:06] [#]} 53. Rxb2 $3 {[%emt 0:00:00][%mdl 512] Weighted Error Value: White=0.41/Black=0.85.  Loses game:     	White=1     	Black=1      Missed win:     	White=1     	Black=1      Mistake:       	White=2     	Black=6      Inaccurate:     	White=3     	Black=2      OK:         	White=8     	Black=9      Best:        	White=2     	Black=3      Strong:       	White=3     	---} 1-0

[Event "Serbian League 2024"]
[Site "Bajina Basta"]
[Date "2024.10.02"]
[Round "6.23"]
[White "Roganovic, Milos"]
[Black "Todorovic, Goran M"]
[Result "1-0"]
[ECO "B51"]
[WhiteElo "2434"]
[BlackElo "2289"]
[Annotator "RC"]
[PlyCount "85"]
[EventDate "2024.09.26"]
[EventType "team-tourn"]
[EventCountry "SRB"]
[SourceTitle "playchess.com"]
[Source "ChessBase"]
[SourceQuality "1"]
[TimeControl "40/5400+30:1800+30"]

1. e4 {[%emt 0:00:03]} c5 {[%emt 0:00:17]} 2. Nf3 {[%emt 0:00:06]} d6 {[%emt 0:00:18]} 3. Bb5+ {[%emt 0:00:59]} Nc6 {[%emt 0:00:08]} 4. O-O {[%emt 0:01:55]} Bd7 {[%emt 0:00:13]} 5. c3 {[%emt 0:01:19]} Nf6 {[%emt 0:01:16]} 6. d4 {[%emt 0:00:15]} Nxe4 {[%emt 0:07:18]} 7. d5 {[%emt 0:01:42]} Ne5 {[%emt 0:01:32]} 8. Na3 {[%emt 0:02:01]} g6 {[%emt 0:18:36]} 9. Nxe5 {[%emt 0:03:30]} dxe5 {[%emt 0:00:14]} 10. Qe2 {[%emt 0:00:31]} Bxb5 {[%emt 0:11:17]} 11. Nxb5 {[%emt 0:02:11]} Nd6 {[%emt 0:00:06]} 12. Qxe5 {[%emt 0:01:22]} Rg8 {[%emt 0:00:13]} 13. Qe2 {[%emt 0:04:15]} a6 {[%emt 0:04:51]} 14. Nxd6+ {[%emt 0:05:00]} Qxd6 {[%emt 0:00:04]} 15. Rd1 {[%emt 0:06:56]} Bg7 {[%emt 0:03:44]} 16. g3 {[%emt 0:03:36]} Be5 {[%emt 0:06:12]} 17. Re1 {[%emt 0:05:09]} Bf6 {[%emt 0:00:07]} 18. Bf4 {[%emt 0:00:21]} Qxd5 {[%emt 0:01:54]} 19. Rad1 {[%emt 0:00:14]} Qf5 {[%emt 0:07:42]} 20. Qf3 {[%emt 0:01:53]} g5 {[%emt 0:01:46]} 21. Rd5 {[%emt 0:15:10]} Qc8 {[%emt 0:08:18]} 22. Bd6 {[%emt 0:06:49]} Rg6 {[%emt 0:01:00]} 23. Bxc5 {[%emt 0:01:08]} Qh3 {[%emt 0:05:01]} 24. Qe2 {[%emt 0:08:50]} e6 {[%emt 0:04:49]} 25. Rd2 {[%emt 0:00:52]} Rh6 {[%emt 0:00:54]} 26. f3 {[%emt 0:00:06]} Qf5 {[%emt 0:00:16]} 27. Qe3 {[%emt 0:01:05]} Rc8 {[%emt 0:02:09]} 28. Bd6 {[%emt 0:00:26]} Rg6 {[%emt 0:03:21]} 29. g4 {[%emt 0:03:54]} Qb5 {[%emt 0:00:17]} 30. Red1 {[%emt 0:00:58]} Bd8 {[%emt 0:00:49]} 31. Kg2 {[%emt 0:00:40]} Qc6 {[%emt 0:00:59]} 32. Ba3 {[%emt 0:01:44]} Be7 {[%emt 0:02:13]} 33. Bxe7 {[%emt 0:00:29]} Kxe7 {[%emt 0:00:01]} 34. Qe5 {[%emt 0:00:26]} Rgg8 {[%emt 0:01:49]} 35. Rd6 {[%emt 0:00:41]} Qc7 {[%emt 0:00:07]} 36. c4 {[%emt 0:01:05]} h6 {[%emt 0:01:13]} 37. c5 {[%emt 0:00:39]} a5 {[%emt 0:04:40]} 38. a3 {[%emt 0:02:23]} a4 {[%emt 0:00:55]} 39. h4 {[%emt 0:08:27]} gxh4 {[%emt 0:01:17]} 40. Qh5 {[%emt 0:00:25]} Rg6 {[%emt 0:00:46]} 41. Qxh4+ {[%emt 0:31:07]} Kf8 {[%emt 0:30:17]} 42. Rd7 {[%emt 0:06:15]} Qxc5 {[%emt 0:01:29]} 43. Rc1 {[%emt 0:00:34]} 1-0

[Event "Serbian League 2024"]
[Site "Bajina Basta"]
[Date "2024.10.02"]
[Round "6.24"]
[White "Arsovic, Goran"]
[Black "Pezelj, Novak"]
[Result "1/2-1/2"]
[ECO "A57"]
[WhiteElo "2356"]
[BlackElo "2460"]
[Annotator "TA"]
[PlyCount "66"]
[EventDate "2024.09.26"]
[EventType "team-tourn"]
[EventCountry "SRB"]
[SourceTitle "playchess.com"]
[Source "ChessBase"]
[SourceQuality "1"]
[TimeControl "40/5400+30:1800+30"]

{[%evp 12,66,16,21,25,19,21,13,22,20,19,22,18,16,24,19,18,13,116,81,79,68,76,82,135,116,129,140,121,62,100,60,52,37,124,14,0,9,10,11,0,0,39,43,34,18,20,0,0,0,0,0,0,0,0,0,0]} 1. d4 {[%emt 0:00:11]} Nf6 {[%emt 0:00:19]} 2. Nf3 {[%emt 0:00:27]} c5 {[%emt 0:00:54]} 3. d5 {[%emt 0:01:01]} b5 {[%emt 0:00:44]} 4. c4 {[%emt 0:03:00]} Bb7 {[%emt 0:09:29]} 5. a4 {[%emt 0:07:05]} Qa5+ {[%emt 0:12:43]} 6. Bd2 {[%emt 0:05:03]} b4 {[%emt 0:00:05]} 7. Qc2 {[%emt 0:00:38]} g6 {[%emt 0:00:53]} 8. e4 {[%emt 0:00:21] With the idea e5.} d6 {[%emt 0:00:28]} 9. Bd3 {[%emt 0:01:11]} Bg7 {[%emt 0:00:11]} 10. O-O {[%emt 0:01:16]} O-O {[%emt 0:08:35]} 11. h3 {[%emt 0:04:07]} Nbd7 {[%emt 0:05:08]} 12. Bf4 {[%emt 0:17:25]} Rfe8 {[%emt 0:10:06]} 13. Nbd2 {[%emt 0:04:06]} Nh5 {[%emt 0:06:35]} 14. Be3 {[%emt 0:03:53]} Ne5 {[%emt 0:04:50]} (14... e6 $11) 15. Be2 {[%emt 0:05:08] And now Nxe5 would win.} Nxf3+ {[%emt 0:00:30]} 16. Bxf3 {[%emt 0:00:29][%cal Oe4e5]} Nf6 {[%emt 0:00:06]} 17. e5 $1 {[%emt 0:01:13]} Nd7 {[%emt 0:01:53] [#]} ({Better is} 17... dxe5 18. Nb3 Qc7) 18. e6 $1 $16 {[%emt 0:01:48]} Nf6 {[%emt 0:01:00]} 19. exf7+ {[%emt 0:00:19]} Kxf7 {[%emt 0:00:05]} 20. Rad1 {[%emt 0:27:21]} (20. Rae1 $16) 20... Kg8 {[%emt 0:00:34]} 21. b3 {[%emt 0:01:16]} Qc7 {[%emt 0:03:37]} 22. Ne4 {[%emt 0:00:47]} e6 {[%emt 0:09:28] [#]} (22... Nxe4 $14 23. Bxe4 e6) 23. dxe6 {[%emt 0:00:38] White is more active.} (23. Ng5 $1 $16 {[%cal Rg5e6]}) 23... Nxe4 $11 {[%emt 0:00:20]} 24. Bxe4 {[%emt 0:00:06]} Rxe6 {[%emt 0:00:05]} 25. Bxb7 {[%emt 0:00:31]} Qxb7 {[%emt 0:00:04]} 26. Rd5 {[%emt 0:00:43]} Qf7 {[%emt 0:01:52]} 27. Qd3 {[%emt 0:04:38]} Qf8 {[%emt 0:05:58]} 28. Rd1 {[%emt 0:02:34]} Be5 {[%emt 0:00:05] The position is equal.} 29. Qd2 {[%emt 0:00:13]} Rae8 {[%emt 0:00:36]} 30. Bh6 {[%emt 0:00:37]} Qf6 {[%emt 0:00:56]} 31. Bg5 {[%emt 0:00:11]} Qg7 {[%emt 0:01:58]} 32. Bh6 {[%emt 0:00:06]} Qf6 {[%emt 0:00:03]} 33. Bg5 {[%emt 0:00:04]} Qg7 {[%emt 0:00:03] Weighted Error Value: White=0.12 (very precise) /Black=0.18 (very precise) .  Mistake:       	White=2     	Black=3      Inaccurate:     	White=2     	Black=2      OK:         	White=5     	Black=8      Best:        	White=1     	Black=2      Strong:       	White=2     	---} 1/2-1/2

[Event "Serbian League 2024"]
[Site "Bajina Basta"]
[Date "2024.10.02"]
[Round "6.25"]
[White "Sychev, Klementy"]
[Black "Benkovic, Petar"]
[Result "1-0"]
[ECO "B41"]
[WhiteElo "2532"]
[BlackElo "2362"]
[Annotator "TA"]
[PlyCount "53"]
[EventDate "2024.09.26"]
[EventType "team-tourn"]
[EventCountry "SRB"]
[SourceTitle "playchess.com"]
[Source "ChessBase"]
[SourceQuality "1"]
[TimeControl "40/5400+30:1800+30"]

{[%evp 9,53,12,18,10,22,31,37,11,16,0,7,0,0,0,0,0,19,31,55,8,16,-12,112,112,135,144,143,147,154,130,139,139,141,152,140,151,142,143,197,142,182,195,195,189,196,195]} 1. e4 {[%emt 0:00:07]} c5 {[%emt 0:00:22]} 2. Nf3 {[%emt 0:00:05]} e6 {[%emt 0:00:09]} 3. d4 {[%emt 0:00:05]} cxd4 {[%emt 0:00:08]} 4. Nxd4 {[%emt 0:00:03]} a6 {[%emt 0:00:11]} 5. a3 {[%emt 1:32:40]} Nf6 6. Nc3 d6 7. Be3 Nc6 8. f4 {White is slightly better.} Be7 9. Qe2 e5 10. Nf5 Bxf5 11. exf5 exf4 12. Bxf4 d5 {[%cal Bd6d5,Bd5d4][%mdl 32]} 13. O-O-O {[%cal Ba1d1,Bd1d4,Bd4c4][%mdl 32] Hoping for g4.} d4 14. Qf3 (14. g4 $14 {was preferrable.}) 14... Qa5 15. Ne2 Qxf5 (15... Rd8 $11) 16. Nxd4 $16 Nxd4 17. Rxd4 O-O 18. Qxb7 Bc5 19. Bd3 {This pair of bishops is nice.} Qe6 20. Rc4 {White has more active pieces. White is clearly better.} Be3+ 21. Bxe3 Qxe3+ 22. Kb1 {Black is weak on the light squares} a5 23. Rd1 $36 {[%mdl 2048] Black is under strong pressure.} Rad8 (23... h6 $16 24. Rf1 Rad8) 24. Qc7 ({White should try} 24. Qb5 $18) 24... Qg5 25. h4 Qxg2 26. Qxa5 h6 27. Qd2 {[%emt 0:00:00] Weighted Error Value: White=0.12 (very precise) /Black=0.17 (very precise) .  Mistake:       	White=2     	Black=2      Inaccurate:     	White=2     	---        OK:         	White=6     	Black=10     Best:        	White=4     	Black=1} 1-0

[Event "Serbian League 2024"]
[Site "Bajina Basta"]
[Date "2024.10.02"]
[Round "6.26"]
[White "Eren, Ataberk"]
[Black "Maksimovic, Bojan"]
[Result "1/2-1/2"]
[ECO "B41"]
[WhiteElo "2386"]
[BlackElo "2503"]
[Annotator "TA"]
[PlyCount "28"]
[EventDate "2024.09.26"]
[EventType "team-tourn"]
[EventCountry "SRB"]
[SourceTitle "playchess.com"]
[Source "ChessBase"]
[SourceQuality "1"]
[TimeControl "40/5400+30:1800+30"]

{[%evp 9,28,17,37,25,36,40,31,29,47,24,28,29,17,16,19,0,18,0,0,0,0]} 1. e4 {[%emt 0:02:07]} c5 {[%emt 0:04:21]} 2. Nf3 {[%emt 0:00:14]} e6 {[%emt 0:00:19]} 3. d4 {[%emt 0:00:18]} cxd4 {[%emt 0:00:07]} 4. Nxd4 {[%emt 0:00:05]} a6 {[%emt 1:27:43][%cal Ba7a6,Ba6a5,Ba5a4][%mdl 32]} 5. g3 d5 6. Nb3 Nf6 7. exd5 exd5 8. Bg2 {White is slightly better.} a5 9. O-O a4 10. Nd4 Be7 11. Nb5 {[%cal Oc2c4] The position is equal.} Bg4 12. Qd3 {Black should prevent c4.} O-O 13. N1c3 Nc6 14. Bf4 {[%cal Oa2a3]} (14. Bxd5 $2 {is the wrong capture.} Nb4 15. Qc4 Nbxd5 $19) 14... d4 {[%emt 0:00:00] Weighted Error Value: White=0.07 (flawless) /Black=0.02 (flawless) .  OK:         	White=2     	Black=5      Best:        	---       	Black=2} 1/2-1/2

[Event "Serbian League 2024"]
[Site "Bajina Basta"]
[Date "2024.10.02"]
[Round "6.27"]
[White "Pap, Misa"]
[Black "Ozsakallioglu, Okan"]
[Result "0-1"]
[ECO "B06"]
[WhiteElo "2389"]
[BlackElo "2349"]
[Annotator "TA"]
[PlyCount "54"]
[EventDate "2024.09.26"]
[EventType "team-tourn"]
[EventCountry "SRB"]
[SourceTitle "playchess.com"]
[Source "ChessBase"]
[SourceQuality "1"]
[TimeControl "40/5400+30:1800+30"]

{[%evp 9,54,21,28,22,29,45,39,39,37,42,39,19,34,27,28,32,38,35,39,35,51,4,22,16,29,0,0,0,5,0,7,-10,-6,-26,0,0,107,97,102,102,198,67,68,71,156,39,32]} 1. e4 {[%emt 0:03:38]} c5 {[%emt 0:00:04]} 2. c3 {[%emt 0:00:53]} d5 {[%emt 0:00:04]} 3. exd5 {[%emt 0:00:11]} Qxd5 {[%emt 0:00:04]} 4. d4 {[%emt 0:00:16]} g6 {[%emt 1:32:18]} 5. Nf3 Bg7 6. Nbd2 {Hoping for Bc4.} cxd4 7. Bc4 Qd8 8. Nxd4 Nf6 9. O-O O-O 10. N2f3 Qc7 11. Bb3 Bd7 12. Re1 Nc6 13. Bg5 Nxd4 14. Qxd4 Bc6 {[%cal Of6e4]} 15. Bf4 (15. Qe5 $14 Qxe5 16. Nxe5) 15... Qa5 16. Ne5 (16. Rxe7 {with more complications.} Nd5 17. Re5 Nxf4 18. Rxa5 Bxd4 19. Nxd4 Bxg2 20. Re1) 16... Bd5 17. Qa4 Qxa4 18. Bxa4 Rfd8 19. h3 Rac8 20. Be3 Ne4 21. Nf3 {[%cal Oa4b3]} b6 {[%cal Oe4c3]} 22. Bb3 Bb7 (22... Nxc3 $11 23. bxc3 Bxf3 (23... Bxc3 24. Bxd5 Bxa1 25. Bxf7+ Kxf7 26. Rxa1 $16)) 23. Ng5 $1 $16 Nd6 {[#]} 24. Rad1 $1 e6 {[#]} (24... Bc6 $16 {was called for.}) 25. Bxe6 fxe6 $14 26. Nxe6 Bf8 27. Nxd8 (27. Bf4 $1 $16) 27... Rxd8 {[%emt 0:00:00][%mdl 32768] Weighted Error Value: White=0.19 (very precise) /Black=0.18 (very precise) .  Mistake:       	White=3     	Black=3      Inaccurate:     	---       	Black=1      OK:         	White=4     	Black=9      Best:        	White=1     	Black=1      Strong:       	White=2     	---       . Loss on time!?} 0-1

[Event "Serbian League 2024"]
[Site "Bajina Basta"]
[Date "2024.10.02"]
[Round "6.28"]
[White "Ljepic, Andrej"]
[Black "Damljanovic, Branko"]
[Result "1-0"]
[ECO "C50"]
[WhiteElo "2326"]
[BlackElo "2354"]
[Annotator "RC"]
[PlyCount "115"]
[EventDate "2024.09.26"]
[EventType "team-tourn"]
[EventCountry "SRB"]
[SourceTitle "playchess.com"]
[Source "ChessBase"]
[SourceQuality "1"]
[TimeControl "40/5400+30:1800+30"]

1. e4 {[%emt 0:00:03]} e5 {[%emt 0:01:17]} 2. Nf3 {[%emt 0:00:55]} Nc6 {[%emt 0:00:04]} 3. Bc4 {[%emt 0:00:17]} d6 {[%emt 0:02:29]} 4. d4 {[%emt 0:03:24]} Be7 {[%emt 0:02:35]} 5. h3 {[%emt 0:02:58]} Nf6 {[%emt 0:00:10]} 6. Nc3 {[%emt 0:00:36]} O-O {[%emt 0:00:10]} 7. d5 {[%emt 0:04:07]} Nb8 {[%emt 0:05:09]} 8. O-O {[%emt 0:00:11]} Nbd7 {[%emt 0:03:43]} 9. a4 {[%emt 0:06:28]} Kh8 {[%emt 0:07:00]} 10. a5 {[%emt 0:04:58]} a6 {[%emt 0:01:06]} 11. b4 {[%emt 0:08:02]} Ng8 {[%emt 0:02:03]} 12. Bd3 {[%emt 0:03:57]} g6 {[%emt 0:00:21]} 13. Ne1 {[%emt 0:06:06]} Bg5 {[%emt 0:06:31]} 14. Bb2 {[%emt 0:04:05]} Bh6 {[%emt 0:00:52]} 15. Ne2 {[%emt 0:01:55]} Bg7 {[%emt 0:01:25]} 16. c4 {[%emt 0:03:18]} Ne7 {[%emt 0:00:22]} 17. Qc2 {[%emt 0:06:50]} c5 {[%emt 0:02:02]} 18. dxc6 {[%emt 0:03:30]} Nxc6 {[%emt 0:00:05]} 19. Qd2 {[%emt 0:04:46]} Nf6 {[%emt 0:02:03]} 20. Nc2 {[%emt 0:04:44]} Nh5 {[%emt 0:02:37]} 21. Bc3 {[%emt 0:07:38]} f5 {[%emt 0:04:59]} 22. f4 {[%emt 0:04:26]} exf4 {[%emt 0:21:29]} 23. Bxg7+ {[%emt 0:03:48]} Kxg7 {[%emt 0:07:16]} 24. exf5 {[%emt 0:02:35]} g5 {[%emt 0:00:44]} 25. g4 {[%emt 0:01:03]} Nf6 {[%emt 0:09:48]} 26. Ned4 {[%emt 0:01:35]} Ne5 {[%emt 0:00:12]} 27. Ne6+ {[%emt 0:02:52]} Bxe6 {[%emt 0:00:17]} 28. fxe6 {[%emt 0:00:04]} Nc6 {[%emt 0:03:50]} 29. Rae1 {[%emt 0:03:28]} d5 {[%emt 0:01:01]} 30. e7 {[%emt 0:01:11]} Nxe7 {[%emt 0:01:39]} 31. Nd4 {[%emt 0:00:05]} Kh8 {[%emt 0:00:27]} 32. Ne6 {[%emt 0:00:33]} Qd7 {[%emt 0:00:12]} 33. Qb2 {[%emt 0:01:35]} d4 {[%emt 0:04:00]} 34. Nxf8 {[%emt 0:00:25]} Rxf8 {[%emt 0:00:02]} 35. Re5 {[%emt 0:00:30]} h6 {[%emt 0:00:19]} 36. b5 {[%emt 0:01:05]} axb5 {[%emt 0:05:14]} 37. cxb5 {[%emt 0:00:20]} Qd6 {[%emt 0:00:03]} 38. Rfe1 {[%emt 0:01:27]} f3 {[%emt 0:00:07]} 39. Qf2 {[%emt 0:00:43]} Nfd5 {[%emt 0:02:47]} 40. Re6 {[%emt 0:01:04]} Qb4 {[%emt 0:02:06]} 41. Rxh6+ {[%emt 0:04:15]} Kg8 {[%emt 0:00:25]} 42. Rh5 {[%emt 0:10:10]} Nf4 {[%emt 0:01:32]} 43. Rxg5+ {[%emt 0:00:34]} Kf7 {[%emt 0:01:20]} 44. Bf1 {[%emt 0:00:56]} d3 {[%emt 0:08:52]} 45. Rge5 {[%emt 0:09:48]} Neg6 {[%emt 0:02:15]} 46. Qc5 {[%emt 0:04:50]} Ne2+ {[%emt 0:06:45]} 47. Kf2 {[%emt 0:00:15]} Qd2 {[%emt 0:01:55]} 48. Rf5+ {[%emt 0:01:02]} Kg7 {[%emt 0:00:04]} 49. Bxe2 {[%emt 0:01:13]} fxe2 {[%emt 0:00:57]} 50. Rxf8 {[%emt 0:00:56]} Nxf8 {[%emt 0:00:06]} 51. Qe5+ {[%emt 0:00:52]} Kf7 {[%emt 0:01:28]} 52. a6 {[%emt 0:00:39]} bxa6 {[%emt 0:02:32]} 53. bxa6 {[%emt 0:00:04]} Nd7 {[%emt 0:07:53]} 54. Qf5+ {[%emt 0:01:04]} Ke7 {[%emt 0:01:59]} 55. a7 {[%emt 0:00:50]} Nb6 {[%emt 0:00:14]} 56. Qc5+ {[%emt 0:00:59]} Kf7 {[%emt 0:00:56]} 57. a8=Q {[%emt 0:01:18]} Nxa8 {[%emt 0:00:15]} 58. Qd5+ {[%emt 0:00:07]} 1-0

[Event "Serbian League 2024"]
[Site "Bajina Basta"]
[Date "2024.10.02"]
[Round "6.29"]
[White "Ivanovic, Marko"]
[Black "Ivanovic, Dragutin"]
[Result "1-0"]
[ECO "B23"]
[WhiteElo "2240"]
[BlackElo "2308"]
[Annotator "TA"]
[PlyCount "33"]
[EventDate "2024.09.26"]
[EventType "team-tourn"]
[EventCountry "SRB"]
[SourceTitle "playchess.com"]
[Source "ChessBase"]
[SourceQuality "1"]
[TimeControl "40/5400+30:1800+30"]

{[%evp 9,33,21,32,26,35,37,76,62,62,81,175,204,424,345,368,308,465,464,461,462,572,546,602,575,891,883]} 1. e4 {[%emt 0:00:03]} c5 {[%emt 0:00:10]} 2. Nc3 {[%emt 0:00:07]} a6 {[%emt 0:00:29]} 3. g3 {[%emt 0:00:19]} b5 {[%emt 0:00:28]} 4. Bg2 {[%emt 0:00:07]} Bb7 {[%emt 0:00:18]} 5. Nge2 {[%emt 0:00:11]} b4 {[%emt 0:03:37]} 6. Na4 {[%emt 0:01:34]} e5 {[%emt 0:00:15]} 7. c3 {[%emt 0:05:04]} Nf6 {[%emt 0:03:01]} 8. cxb4 {[%emt 0:01:29] White is better.} cxb4 {[%emt 0:03:01]} 9. d4 {[%emt 0:08:50]} Nxe4 {[%emt 0:08:45]} (9... d6 $16 {was worth a try.}) 10. O-O $18 {[%emt 0:01:08]} (10. dxe5 Nc3 11. Nexc3 (11. bxc3 Bxg2 12. Rg1 Be4 $17) 11... Bxg2 $14) 10... f6 {[%emt 0:21:46]} (10... Bd6 11. Be3 O-O) 11. Re1 {[%emt 0:03:32] [#] And now dxe5 would win.} d5 {[%emt 0:02:56]} 12. f3 {[%emt 0:02:00][%cal Bf2f3,Bf3f4,Bf4e5][%mdl 32]} Ng5 {[%emt 0:00:23]} (12... Nd6 {was necessary.} 13. Nf4 Nd7 14. Nxd5 Rb8 (14... Bxd5 $2 {too greedy.} 15. dxe5 fxe5 16. Qxd5 $18) 15. dxe5 (15. Nxb4 Nb5 $16) 15... fxe5) 13. dxe5 {[%emt 0:06:50] White is clearly winning.} fxe5 {[%emt 0:00:11]} 14. Nd4 {[%emt 0:00:56] Prevents Ne6.} Bd6 {[%emt 0:00:33]} 15. f4 {[%emt 0:04:32]} O-O {[%emt 0:01:27]} 16. fxe5 {[%emt 0:02:40][%cal Oc1g5] [#] Bxg5! is the strong threat.} Be7 {[%emt 0:05:04]} 17. Bxg5 {[%emt 0:01:00] Black got outplayed after the opening.   Weighted Error Value: White=0.15 (very precise) /Black=0.87.  Mistake:       	---       	Black=3      Inaccurate:     	---       	Black=2      OK:         	White=6     	Black=1} 1-0